[Event "Championnat d'Europe de Blitz"]
[Date "2024.12.09"]
[White "Motylev, Alexander"]
[Black "Bulmaga, Irina"]
[WhiteElo "2596"]
[BlackElo "2386"]
[Round "4.16"]
[Result "1/2-1/2"]
[TimeControl "180+2"]

1. e4 {[%emt 00:00:05] [%clk 00:03:01]} e5 {[%clk 00:03:02]} 2. Nf3 {[%emt
00:00:02] [%clk 00:03:01]} Nc6 {[%emt 00:00:02] [%clk 00:03:03]} 3. d4 {[%emt
00:00:02] [%clk 00:03:01]} exd4 {[%emt 00:00:02] [%clk 00:03:03]} 4. Nxd4 {[%emt
00:00:01] [%clk 00:03:01]} Nf6 {[%emt 00:00:03] [%clk 00:03:03]} 5. Nxc6 {[%clk
00:03:01]} bxc6 {[%emt 00:00:03] [%clk 00:03:03]} 6. e5 {[%clk 00:03:02]} Qe7
{[%emt 00:00:03] [%clk 00:03:03]} 7. Qe2 {[%emt 00:00:01] [%clk 00:03:02]} Nd5
{[%emt 00:00:02] [%clk 00:03:03]} 8. Nd2 {[%emt 00:00:02] [%clk 00:03:02]} g6
{[%emt 00:00:04] [%clk 00:03:02]} 9. c4 {[%emt 00:00:02] [%clk 00:03:02]} Ba6
{[%emt 00:00:03] [%clk 00:03:02]} 10. Nf3 {[%emt 00:00:13] [%clk 00:02:49]} Bg7
{[%emt 00:00:08] [%clk 00:02:57]} 11. Bg5 {[%emt 00:00:02] [%clk 00:02:49]} Qb4+
{[%emt 00:00:12] [%clk 00:02:47]} 12. Qd2 {[%emt 00:00:01] [%clk 00:02:50]}
Qxd2+ {[%emt 00:00:12] [%clk 00:02:37]} 13. Bxd2 {[%emt 00:00:02] [%clk
00:02:50]} Nb6 {[%emt 00:00:06] [%clk 00:02:33]} 14. b3 {[%emt 00:00:02] [%clk
00:02:50]} O-O {[%emt 00:00:10] [%clk 00:02:25]} 15. O-O-O {[%emt 00:00:03]
[%clk 00:02:48]} d5 {[%emt 00:00:24] [%clk 00:02:04]} 16. cxd5 {[%emt 00:01:32]
[%clk 00:01:19]} Bxf1 {[%emt 00:00:03] [%clk 00:02:02]} 17. Rhxf1 {[%emt
00:00:02] [%clk 00:01:19]} cxd5 {[%emt 00:00:05] [%clk 00:02:00]} 18. Kb1 {[%emt
00:00:01] [%clk 00:01:19]} Rfe8 {[%emt 00:00:12] [%clk 00:01:50]} 19. Rc1 {[%emt
00:00:03] [%clk 00:01:18]} Rac8 {[%emt 00:00:21]} 20. Rc6 {[%clk 00:01:03]} Bxe5
{[%emt 00:00:28] [%clk 00:01:21]} 21. Nxe5 {[%emt 00:00:01] [%clk 00:01:04]}
Rxe5 {[%emt 00:00:01] [%clk 00:01:22]} 22. Rfc1 {[%clk 00:01:05]} Na8 {[%emt
00:00:30] [%clk 00:00:55]} 23. Be3 {[%emt 00:00:04] [%clk 00:01:03]} Rd8 {[%emt
00:00:20] [%clk 00:00:38]} 24. Rd1 {[%emt 00:00:15] [%clk 00:00:49]} Re6 {[%emt
00:00:06] [%clk 00:00:34]} 25. Rxe6 {[%emt 00:00:16] [%clk 00:00:35]} fxe6
{[%clk 00:00:35]} 26. Bxa7 {[%emt 00:00:02] [%clk 00:00:35]} e5 {[%emt 00:00:02]
[%clk 00:00:34]} 27. Re1 {[%emt 00:00:04] [%clk 00:00:33]} e4 {[%emt 00:00:15]
[%clk 00:00:22]} 28. f3 {[%clk 00:00:34]} exf3 {[%emt 00:00:14] [%clk 00:00:11]}
29. gxf3 {[%clk 00:00:35]} Kf7 {[%emt 00:00:01] [%clk 00:00:12]} 30. Kc2 {[%emt
00:00:05] [%clk 00:00:32]} Nb6 {[%emt 00:00:01] [%clk 00:00:13]} 31. Bxb6 {[%emt
00:00:10] [%clk 00:00:24]} cxb6 {[%clk 00:00:14]} 32. a4 {[%emt 00:00:02] [%clk
00:00:24]} Kf6 {[%emt 00:00:05] [%clk 00:00:11]} 33. Kc3 {[%emt 00:00:03] [%clk
00:00:23]} Kf5 {[%emt 00:00:07] [%clk 00:00:06]} 34. Re7 {[%emt 00:00:05] [%clk
00:00:20]} h5 {[%emt 00:00:02] [%clk 00:00:07]} 35. Kd4 {[%emt 00:00:02] [%clk
00:00:20]} Rd6 {[%emt 00:00:02] [%clk 00:00:07]} 36. b4 {[%emt 00:00:11] [%clk
00:00:10]} Kf4 {[%emt 00:00:01] [%clk 00:00:07]} 37. Rf7 {[%emt 00:00:04] [%clk
00:00:09]} Kg5 {[%clk 00:00:08]} 38. Re7 {[%emt 00:00:05] [%clk 00:00:06]} Kf4
{[%emt 00:00:02] [%clk 00:00:09]} 39. Rf7 {[%emt 00:00:04] [%clk 00:00:04]} Kg5
{[%clk 00:00:10]} 40. Rc7 {[%emt 00:00:02] [%clk 00:00:04]} Kf4 {[%emt 00:00:02]
[%clk 00:00:10]} 41. Rf7 {[%emt 00:00:01] [%clk 00:00:04]} 1/2-1/2

[Site "Europe Echecs"]

[Event "Championnat d'Europe de Blitz"]
[Date "2024.12.09"]
[White "Ragger, Markus"]
[Black "Vyval, Volodymyr"]
[WhiteElo "2577"]
[BlackElo "2269"]
[Round "4.17"]
[Result "1-0"]
[TimeControl "180+2"]

1. d4 {[%clk 00:03:03]} Nf6 {[%emt 00:00:03] [%clk 00:03:04]} 2. c4 {[%clk
00:03:05]} g6 {[%clk 00:03:05]} 3. Nc3 {[%clk 00:03:06]} d5 {[%clk 00:03:06]} 4.
cxd5 {[%emt 00:00:04] [%clk 00:03:04]} Nxd5 {[%emt 00:00:01] [%clk 00:03:08]} 5.
e4 {[%clk 00:03:05]} Nxc3 {[%emt 00:00:02] [%clk 00:03:08]} 6. bxc3 {[%clk
00:03:06]} Bg7 {[%clk 00:03:10]} 7. Nf3 {[%emt 00:00:01] [%clk 00:03:07]} c5
{[%emt 00:00:01] [%clk 00:03:11]} 8. Bb5+ {[%clk 00:03:08]} Nc6 {[%emt 00:00:01]
[%clk 00:03:12]} 9. O-O {[%emt 00:00:02] [%clk 00:03:08]} O-O {[%emt 00:00:02]
[%clk 00:03:12]} 10. Bxc6 {[%emt 00:00:03] [%clk 00:03:07]} bxc6 {[%emt
00:00:01] [%clk 00:03:13]} 11. Qc2 {[%clk 00:03:08]} cxd4 {[%emt 00:00:04] [%clk
00:03:11]} 12. cxd4 {[%emt 00:00:01] [%clk 00:03:08]} Bg4 {[%emt 00:00:18] [%clk
00:02:56]} 13. Ne5 {[%emt 00:00:01] [%clk 00:03:09]} Qxd4 {[%emt 00:00:04] [%clk
00:02:54]} 14. Bb2 {[%emt 00:00:01] [%clk 00:03:10]} Qb6 {[%emt 00:00:15] [%clk
00:02:41]} 15. Rab1 {[%emt 00:00:09] [%clk 00:03:03]} Bxe5 {[%emt 00:00:04]
[%clk 00:02:39]} 16. Bxe5 {[%emt 00:00:01] [%clk 00:03:04]} Qa5 {[%emt 00:00:01]
[%clk 00:02:40]} 17. Bc3 {[%emt 00:00:13]} Qc5 {[%clk 00:02:40]} 18. Rbc1 {[%emt
00:00:14] [%clk 00:02:43]} a5 {[%emt 00:00:15] [%clk 00:02:27]} 19. Qd2 {[%emt
00:00:13] [%clk 00:02:31]} Qd6 {[%emt 00:00:42] [%clk 00:01:47]} 20. Qh6 {[%emt
00:00:14] [%clk 00:02:20]} f6 {[%emt 00:00:15] [%clk 00:01:34]} 21. e5 {[%emt
00:00:27] [%clk 00:01:55]} fxe5 {[%emt 00:00:07] [%clk 00:01:29]} 22. Rfe1
{[%emt 00:00:05] [%clk 00:01:52]} Rf5 {[%emt 00:00:09] [%clk 00:01:22]} 23. h3
{[%emt 00:00:10] [%clk 00:01:44]} Rh5 {[%emt 00:00:02] [%clk 00:01:21]} 24. Qe3
{[%emt 00:00:10] [%clk 00:01:37]} Be6 {[%emt 00:00:30] [%clk 00:00:53]} 25. g4
{[%emt 00:00:02] [%clk 00:01:37]} Rh4 {[%emt 00:00:17] [%clk 00:00:38]} 26. Bxe5
{[%emt 00:00:38] [%clk 00:01:02]} Qd7 {[%emt 00:00:19] [%clk 00:00:20]} 27. Bg3
{[%emt 00:00:22] [%clk 00:00:41]} Rxh3 {[%emt 00:00:18] [%clk 00:00:05]} 28.
Qxe6+ {[%clk 00:00:43]} Qxe6 {[%emt 00:00:02] [%clk 00:00:06]} 29. Rxe6 {[%clk
00:00:44]} 1-0

[Site "Europe Echecs"]

[Event "Championnat d'Europe de Blitz"]
[Date "2024.12.09"]
[White "Aizenberg, Benny"]
[Black "Peyrer, Konstantin"]
[WhiteElo "2425"]
[BlackElo "2440"]
[Round "4.18"]
[Result "0-1"]
[TimeControl "180+2"]

1. e4 {[%emt 00:00:04] [%clk 00:03:02]} e5 {[%clk 00:03:03]} 2. Nf3 {[%clk
00:03:03]} Nc6 {[%emt 00:00:01] [%clk 00:03:04]} 3. Bb5 {[%emt 00:00:01] [%clk
00:03:04]} a6 {[%emt 00:00:01] [%clk 00:03:05]} 4. Ba4 {[%clk 00:03:05]} f5
{[%emt 00:00:01] [%clk 00:03:06]} 5. d3 {[%emt 00:00:01] [%clk 00:03:05]} fxe4
{[%emt 00:00:02] [%clk 00:03:07]} 6. dxe4 {[%emt 00:00:01] [%clk 00:03:06]} Nf6
{[%emt 00:00:01] [%clk 00:03:06]} 7. Nc3 {[%emt 00:00:03] [%clk 00:03:06]} d6
{[%emt 00:00:02] [%clk 00:03:07]} 8. h3 {[%emt 00:00:06] [%clk 00:03:03]} Be7
{[%emt 00:00:02] [%clk 00:03:06]} 9. Bb3 {[%emt 00:00:02] [%clk 00:03:04]} Na5
{[%emt 00:00:01] [%clk 00:03:07]} 10. Bg5 {[%emt 00:00:12] [%clk 00:02:53]} Nxb3
{[%emt 00:00:02] [%clk 00:03:07]} 11. axb3 {[%clk 00:02:54]} O-O {[%emt
00:00:02] [%clk 00:03:06]} 12. O-O {[%emt 00:00:07] [%clk 00:02:49]} Be6 {[%emt
00:00:15] [%clk 00:02:53]} 13. Re1 {[%emt 00:00:04] [%clk 00:02:47]} Qe8 {[%emt
00:00:06] [%clk 00:02:49]} 14. Bxf6 {[%emt 00:00:04] [%clk 00:02:45]} Bxf6
{[%emt 00:00:04] [%clk 00:02:48]} 15. Nd5 {[%emt 00:00:01] [%clk 00:02:46]} Bd8
{[%emt 00:00:01] [%clk 00:02:49]} 16. Nh2 {[%emt 00:00:23] [%clk 00:02:25]} Qg6
{[%emt 00:00:07] [%clk 00:02:44]} 17. Qd3 {[%emt 00:00:03] [%clk 00:02:23]} c6
{[%emt 00:00:12] [%clk 00:02:35]} 18. Nc3 {[%emt 00:00:25] [%clk 00:02:00]} Bb6
{[%emt 00:00:02] [%clk 00:02:35]} 19. Re2 {[%emt 00:00:01] [%clk 00:02:01]} Rad8
{[%emt 00:00:03] [%clk 00:02:34]} 20. Rf1 {[%emt 00:00:12] [%clk 00:01:51]} Rf4
{[%emt 00:00:08] [%clk 00:02:28]} 21. Kh1 {[%emt 00:00:18] [%clk 00:01:35]} Bc8
{[%emt 00:00:06] [%clk 00:02:23]} 22. f3 {[%emt 00:00:15] [%clk 00:01:23]} Bd4
{[%emt 00:00:18] [%clk 00:02:05]} 23. Nd1 {[%emt 00:00:06] [%clk 00:01:20]} d5
{[%emt 00:00:04] [%clk 00:02:03]} 24. Nf2 {[%emt 00:00:22] [%clk 00:01:01]} Bb6
{[%emt 00:00:26] [%clk 00:01:39]} 25. exd5 {[%emt 00:00:06] [%clk 00:00:57]} Bf5
{[%clk 00:01:40]} 26. Qd2 {[%emt 00:00:21] [%clk 00:00:38]} Rxd5 {[%emt
00:00:02] [%clk 00:01:40]} 27. Qc1 {[%emt 00:00:01] [%clk 00:00:39]} Qg3 {[%emt
00:00:13] [%clk 00:01:29]} 28. Ne4 {[%emt 00:00:10] [%clk 00:00:31]} Qh4 {[%emt
00:00:17] [%clk 00:01:14]} 29. g3 {[%emt 00:00:11] [%clk 00:00:22]} Rxe4 {[%emt
00:00:01] [%clk 00:01:15]} 30. gxh4 {[%emt 00:00:13] [%clk 00:00:11]} Rxe2
{[%clk 00:01:15]} 31. Re1 {[%emt 00:00:05] [%clk 00:00:09]} Rxc2 {[%emt
00:00:02] [%clk 00:01:15]} 32. Qg5 {[%emt 00:00:05] [%clk 00:00:06]} Bxh3 {[%emt
00:00:01] [%clk 00:01:15]} 33. Ng4 {[%emt 00:00:04] [%clk 00:00:05]} Bg2+ {[%emt
00:00:11] [%clk 00:01:06]} 34. Kh2 {[%clk 00:00:06]} Bxf3+ {[%emt 00:00:01]
[%clk 00:01:07]} 35. Kg3 {[%emt 00:00:05] [%clk 00:00:03]} e4 {[%emt 00:00:06]
[%clk 00:01:02]} 36. Nf6+ {[%emt 00:00:02] [%clk 00:00:04]} Kf7 {[%clk
00:01:03]} 37. Nxd5 {[%emt 00:00:02] [%clk 00:00:04]} Rg2+ {[%emt 00:00:01]
[%clk 00:01:04]} 38. Kf4 {[%clk 00:00:05]} Rxg5 {[%emt 00:00:01] [%clk
00:01:05]} 39. Nxb6 {[%emt 00:00:02] [%clk 00:00:07]} Rb5 {[%emt 00:00:08] [%clk
00:00:58]} 40. Nc4 {[%emt 00:00:02] [%clk 00:00:07]} Kf6 {[%clk 00:00:59]} 41.
Re3 {[%emt 00:00:03] [%clk 00:00:06]} g5+ {[%emt 00:00:02] [%clk 00:00:59]} 42.
hxg5+ {[%emt 00:00:04] [%clk 00:00:04]} Rxg5 {[%emt 00:00:02] [%clk 00:01:00]}
43. Nd6 {[%emt 00:00:01] [%clk 00:00:06]} Rg4# {[%clk 00:01:00]} 0-1

[Site "Europe Echecs"]

[Event "Championnat d'Europe de Blitz"]
[Date "2024.12.09"]
[White "Magold, Filip"]
[Black "Deac, Bogdan-Daniel"]
[WhiteElo "2428"]
[BlackElo "2696"]
[Round "4.19"]
[Result "0-1"]
[TimeControl "180+2"]

1. e4 {[%emt 00:00:02] [%clk 00:03:02]} c6 {[%emt 00:00:03] [%clk 00:03:03]} 2.
d4 {[%clk 00:03:03]} d5 {[%clk 00:03:04]} 3. e5 {[%emt 00:00:02] [%clk
00:03:04]} Bf5 {[%emt 00:00:09] [%clk 00:02:57]} 4. Nf3 {[%emt 00:00:01] [%clk
00:03:04]} e6 {[%emt 00:00:04] [%clk 00:02:55]} 5. Be2 {[%emt 00:00:01] [%clk
00:03:04]} Ne7 {[%emt 00:00:03] [%clk 00:02:55]} 6. O-O {[%emt 00:00:03] [%clk
00:03:03]} Ng6 {[%emt 00:00:02] [%clk 00:02:54]} 7. b3 {[%emt 00:00:17] [%clk
00:02:49]} Nd7 {[%emt 00:00:23] [%clk 00:02:33]} 8. c4 {[%emt 00:00:02] [%clk
00:02:49]} f6 {[%emt 00:00:02] [%clk 00:02:33]} 9. cxd5 {[%emt 00:00:38] [%clk
00:02:12]} exd5 {[%emt 00:00:13] [%clk 00:02:22]} 10. exf6 {[%emt 00:00:24]
[%clk 00:01:50]} Nxf6 {[%emt 00:00:25] [%clk 00:01:59]} 11. Re1 {[%emt 00:00:07]
[%clk 00:01:44]} Bb4 {[%emt 00:00:51] [%clk 00:01:11]} 12. Bd2 {[%emt 00:00:39]
[%clk 00:01:07]} Bxd2 {[%emt 00:00:03] [%clk 00:01:10]} 13. Nbxd2 {[%emt
00:00:02] [%clk 00:01:06]} O-O {[%emt 00:00:08] [%clk 00:01:04]} 14. Nf1 {[%emt
00:00:07] [%clk 00:01:01]} Nf4 {[%emt 00:00:32] [%clk 00:00:34]} 15. Ne3 {[%emt
00:00:03] [%clk 00:01:01]} Be4 {[%emt 00:00:03] [%clk 00:00:33]} 16. Bf1 {[%emt
00:00:21] [%clk 00:00:42]} Bxf3 {[%emt 00:00:05] [%clk 00:00:30]} 17. gxf3
{[%emt 00:00:10] [%clk 00:00:34]} N6h5 {[%emt 00:00:12] [%clk 00:00:20]} 18. Ng4
{[%emt 00:00:03] [%clk 00:00:33]} Qh4 {[%emt 00:00:03] [%clk 00:00:19]} 19. Re5
{[%emt 00:00:16] [%clk 00:00:19]} Nf6 {[%emt 00:00:02] [%clk 00:00:18]} 20. Ne3
{[%emt 00:00:13] [%clk 00:00:08]} Nd7 {[%emt 00:00:05] [%clk 00:00:16]} 21. Rf5
{[%emt 00:00:02] [%clk 00:00:08]} g6 {[%emt 00:00:10] [%clk 00:00:09]} 22. Rxf8+
{[%emt 00:00:03] [%clk 00:00:06]} Rxf8 {[%emt 00:00:01] [%clk 00:00:10]} 23. Qd2
{[%emt 00:00:05] [%clk 00:00:04]} Qg5+ {[%emt 00:00:03] [%clk 00:00:08]} 24. Kh1
{[%emt 00:00:02] [%clk 00:00:05]} Nf6 {[%emt 00:00:01] [%clk 00:00:08]} 25. Re1
{[%clk 00:00:06]} Ne6 {[%emt 00:00:05] [%clk 00:00:05]} 26. Bh3 {[%emt 00:00:03]
[%clk 00:00:05]} Ng7 {[%emt 00:00:03] [%clk 00:00:04]} 27. Qd3 {[%emt 00:00:03]
[%clk 00:00:04]} Qh4 {[%emt 00:00:02] [%clk 00:00:04]} 28. Bg2 {[%emt 00:00:03]
[%clk 00:00:03]} Qxf2 {[%emt 00:00:02] [%clk 00:00:04]} 29. Re2 {[%emt 00:00:01]
[%clk 00:00:04]} Qh4 {[%emt 00:00:01] [%clk 00:00:05]} 30. Nf1 {[%emt 00:00:01]
[%clk 00:00:05]} Ngh5 {[%emt 00:00:03] [%clk 00:00:05]} 31. Qe3 {[%emt 00:00:01]
[%clk 00:00:06]} Nf4 {[%emt 00:00:02] [%clk 00:00:05]} 32. Rd2 {[%emt 00:00:04]
[%clk 00:00:03]} Re8 {[%emt 00:00:02] [%clk 00:00:05]} 33. Qf2 {[%clk 00:00:05]}
Qxf2 {[%emt 00:00:03] [%clk 00:00:05]} 34. Rxf2 {[%clk 00:00:05]} Re2 {[%emt
00:00:02] [%clk 00:00:04]} 35. Rxe2 {[%emt 00:00:02] [%clk 00:00:05]} Nxe2
{[%emt 00:00:01] [%clk 00:00:05]} 0-1

[Site "Europe Echecs"]

[Event "Championnat d'Europe de Blitz"]
[Date "2024.12.09"]
[White "Navara, David"]
[Black "Schneider, Ilja"]
[WhiteElo "2665"]
[BlackElo "2414"]
[Round "4.20"]
[Result "1-0"]
[TimeControl "180+2"]

1. e4 {[%clk 00:03:03]} e5 {[%emt 00:00:01] [%clk 00:03:04]} 2. Nf3 {[%clk
00:03:04]} Nc6 {[%emt 00:00:03] [%clk 00:03:05]} 3. Bb5 {[%clk 00:03:05]} a6
{[%clk 00:03:06]} 4. Ba4 {[%clk 00:03:06]} Bc5 {[%clk 00:03:08]} 5. c3 {[%emt
00:00:04] [%clk 00:03:04]} Nge7 {[%clk 00:03:09]} 6. d4 {[%emt 00:00:02] [%clk
00:03:04]} exd4 {[%clk 00:03:10]} 7. cxd4 {[%emt 00:00:02] [%clk 00:03:05]} Bb4+
{[%clk 00:03:12]} 8. Nc3 {[%emt 00:00:02] [%clk 00:03:05]} d5 {[%clk 00:03:13]}
9. O-O {[%emt 00:00:04] [%clk 00:03:04]} dxe4 {[%emt 00:00:04] [%clk 00:03:11]}
10. Nxe4 {[%emt 00:00:02] [%clk 00:03:04]} O-O {[%emt 00:00:03] [%clk 00:03:08]}
11. h3 {[%emt 00:00:41] [%clk 00:02:27]} Bf5 {[%emt 00:00:23] [%clk 00:02:47]}
12. Ng3 {[%emt 00:00:02] [%clk 00:02:27]} Bg6 {[%emt 00:00:23] [%clk 00:02:25]}
13. a3 {[%emt 00:00:20] [%clk 00:02:09]} Bd6 {[%emt 00:00:25] [%clk 00:02:02]}
14. d5 {[%emt 00:00:26] [%clk 00:01:46]} Bxg3 {[%emt 00:00:39] [%clk 00:01:26]}
15. dxc6 {[%emt 00:00:04] [%clk 00:01:44]} Qxd1 {[%emt 00:00:02] [%clk
00:01:25]} 16. Rxd1 {[%emt 00:00:06] [%clk 00:01:40]} Bd6 {[%clk 00:01:26]} 17.
cxb7 {[%emt 00:00:03] [%clk 00:01:40]} Rab8 {[%clk 00:01:27]} 18. Bg5 {[%emt
00:00:46] [%clk 00:00:55]} Rxb7 {[%emt 00:00:09] [%clk 00:01:21]} 19. b4 {[%emt
00:00:10] [%clk 00:00:48]} h6 {[%emt 00:00:15] [%clk 00:01:08]} 20. Bd2 {[%emt
00:00:06] [%clk 00:00:43]} Rbb8 {[%emt 00:00:30] [%clk 00:00:41]} 21. Rac1
{[%emt 00:00:05] [%clk 00:00:40]} Rfd8 {[%emt 00:00:07] [%clk 00:00:37]} 22. Be3
{[%emt 00:00:03] [%clk 00:00:38]} Ra8 {[%emt 00:00:11] [%clk 00:00:28]} 23. Bc5
{[%emt 00:00:04] [%clk 00:00:35]} Be4 {[%emt 00:00:18] [%clk 00:00:13]} 24. Bxd6
{[%emt 00:00:07] [%clk 00:00:30]} cxd6 {[%emt 00:00:01] [%clk 00:00:14]} 25. Nd4
{[%emt 00:00:05] [%clk 00:00:27]} Ng6 {[%emt 00:00:13] [%clk 00:00:04]} 26. f3
{[%emt 00:00:09] [%clk 00:00:19]} Bd5 {[%emt 00:00:02] [%clk 00:00:04]} 27. Nf5
{[%emt 00:00:05] [%clk 00:00:16]} Be6 {[%emt 00:00:01] [%clk 00:00:04]} 28. Nxd6
{[%emt 00:00:02] [%clk 00:00:17]} Nf4 {[%emt 00:00:01] [%clk 00:00:04]} 29. Kh2
{[%emt 00:00:08] [%clk 00:00:11]} Nd5 {[%emt 00:00:02] [%clk 00:00:05]} 30. Nb7
{[%emt 00:00:02] [%clk 00:00:10]} Rdb8 {[%emt 00:00:02] [%clk 00:00:05]} 31. Nc5
{[%emt 00:00:01] [%clk 00:00:11]} Ne3 {[%emt 00:00:04] [%clk 00:00:04]} 32. Re1
{[%emt 00:00:02] [%clk 00:00:10]} Nd5 {[%emt 00:00:03] [%clk 00:00:04]} 33. Nxe6
{[%emt 00:00:03] [%clk 00:00:09]} fxe6 {[%emt 00:00:01] [%clk 00:00:05]} 34.
Rxe6 {[%emt 00:00:02] [%clk 00:00:09]} Nf4 {[%emt 00:00:02] [%clk 00:00:04]} 35.
Re7 {[%emt 00:00:05] [%clk 00:00:06]} Rd8 {[%emt 00:00:01] [%clk 00:00:06]} 36.
Rcc7 {[%emt 00:00:02] [%clk 00:00:05]} g5 {[%emt 00:00:05] [%clk 00:00:04]} 37.
Bb3+ {[%emt 00:00:01] [%clk 00:00:06]} Kf8 {[%emt 00:00:01] [%clk 00:00:05]} 38.
Rf7+ {[%clk 00:00:07]} 1-0

[Site "Europe Echecs"]